Cogmind - Beta 12 @@@ ROGUE MODE // 2023.03.08 @ 15:38:22 Player: Red Box Result: Self-destructed Performance ------------- Evolutions (3) 1500 Regions Visited (10) 2000 Robots Destroyed (156) 780 Value Destroyed (5026) 5026 Prototype IDs (14) 280 Alien Tech Used (0) 0 Bonus (563) 563 TOTAL SCORE: 10149 Bonus ------- High Alert Combat Kills 271 Follower Combat Kills 779 Friendly Fire -487 Cogmind --------- Core Integrity 58/700 Matter 58/300 Energy 300/300 System Corruption 0% Temperature Cool (15) Movement Core (1200) Ox23 Location -7/Factory Parts ------- > --- POWER (1) -------- Enhanced Nuclear Core > --- PROPULSION (2) --- (None) > --- UTILITY (8) ------ Improved Cooling System High-capacity Storage Unit Improved Sensor Array Improved Signal Interpreter Improved Targeting Computer Improved Medium Armor Plating > --- WEAPON (2) ------- Advanced Assault Cannon Advanced Assault Cannon > --- INVENTORY (20) --- Antimatter Reactor Heavy Treads Armored Huge Wheel High-capacity Storage Unit Compact Battery (200) Heavy Armor Plating Improved Medium Armor Plating Advanced System Restoration Module Long-range Phase Cannon Mini Assault Cannon Enhanced Gauss Cannon AWS/Autocannon Proton Missile Launcher Precision Grenade Launcher Power Maul Peak State ------------ > --- POWER ------------ Improved Deuterium Engine > --- PROPULSION ------- Armored Huge Wheel > --- UTILITY ---------- Improved Cooling System Improved Cooling System High-capacity Storage Unit Improved Signal Interpreter Heavy Armor Plating Hacking Suite Advanced System Restoration Module > --- WEAPON ----------- Cooled Pulse Rifle Disruptor Cannon > --- INVENTORY -------- Antimatter Reactor Armored Wheel Armored Huge Wheel High-capacity Storage Unit Compact Battery Improved Sensor Array Recoil Stabilizer Kinecellerator Cooled Pulse Rifle Long-range Phase Cannon Gauss Cannon Gauss Cannon Mini Assault Cannon AWS/Autocannon Proton Missile Launcher Precision Grenade Launcher Power Maul [Rating: 60] Favorites ----------- Power Reinforced Ion Engine Engine Reinforced Ion Engine Power Core Nuclear Core Propulsion Compact Wheel Treads Light Treads Leg Aluminum Leg Wheel Compact Wheel Utility Large Storage Unit Device Improved Heat Sink Storage Large Storage Unit Processor Improved Signal Interpreter Hackware Hacking Suite Protection Hardened Light Armor Plating Weapon EM Pulse Cannon Energy Gun Advanced Beam Rifle Energy Cannon EM Pulse Cannon Ballistic Cannon Improved Light Cannon Launcher Proton Missile Launcher Special Weapon Plasma Cutter Impact Weapon Power Maul Slashing Weapon Makeshift Sword Special Melee Weapon Datajack Build | -11 -10 -10 -9 -9 -9 -8 -8 -7 -7 -7 ------- Run | Jun Mat Min Mat Min Exi Min Mat Fac Was Fac Slots Evolved 6 | . . . 2 . . . 2 2 . . Power . | . . . . . . . . . . . Propulsion . | . . . . . . . . . . . Utility 6 | . . . 2 . . . 2 2 . . Weapon . | . . . . . . . . . . . Parts Attached 207 | 7 13 6 33 3 3 3 46 56 17 20 Power 15 | 1 2 . 3 1 . . 2 4 1 1 Engine 13 | 1 2 . 3 1 . . 1 4 1 . Core 2 | . . . . . . . 1 . . 1 Reactor . | . . . . . . . . . . . Propulsion 19 | 2 4 . 1 1 . . 8 2 . 1 Treads 5 | . . . . . . . 5 . . . Leg 2 | 2 . . . . . . . . . . Wheel 12 | . 4 . 1 1 . . 3 2 . 1 Hover . | . . . . . . . . . . . Flight . | . . . . . . . . . . . Utility 84 | 2 2 2 13 1 1 2 20 23 8 10 Device 39 | 1 1 1 5 1 . 1 7 11 8 3 Storage 9 | 1 1 1 1 . . . 1 4 . . Processor 7 | . . . . . . . 3 1 . 3 Hackware 3 | . . . 1 . . 1 1 . . . Protection 26 | . . . 6 . 1 . 8 7 . 4 Artifact . | . . . . . . . . . . . Weapon 89 | 2 5 4 16 . 2 1 16 27 8 8 Energy Gun 40 | 2 1 . 1 . . 1 11 22 2 . Energy Cannon 13 | . . . 8 . 1 . . . 3 1 Ballistic Gun . | . . . . . . . . . . . Ballistic Cannon 17 | . 4 2 3 . . . . 1 2 5 Launcher 11 | . . 2 2 . . . 2 3 1 1 Special Weapon 1 | . . . . . 1 . . . . . Impact Weapon 1 | . . . . . . . . . . 1 Slashing Weapon 3 | . . . . . . . 2 1 . . Piercing Weapon . | . . . . . . . . . . . Special Melee Weapon 3 | . . . 2 . . . 1 . . . Unidentified Prototypes 11 | . . . 2 . . . 3 4 1 1 Parts Lost 36 | . . . 4 . . 1 12 14 . 5 Power 5 | . . . 2 . . . . 3 . . Propulsion 7 | . . . . . . . 5 1 . 1 Utility 18 | . . . 2 . . . 6 6 . 4 Weapon 6 | . . . . . . 1 1 4 . . Highest Loss Streak 3 | . . . 1 . . 1 3 3 . 2 To Critical Strikes . | . . . . . . . . . . . Average Slot Usage (%) 94 | . 98 100 97 100 99 98 93 90 81 87 Engine 8 | . 14 14 10 11 11 11 7 4 7 2 Core 1 | . . . . . . . 1 2 . 4 Wheel 14 | . 19 28 22 22 22 22 9 6 7 7 Device 18 | . 13 14 14 12 22 11 19 24 21 22 Storage 11 | . 14 14 15 22 16 11 9 9 7 7 Processor 4 | . . . . . . . 6 11 7 14 Hackware 3 | . . . 2 . . 11 3 7 7 4 Protection 8 | . . . 10 9 5 11 14 5 7 6 Energy Gun 7 | . 8 . . . . 3 17 14 4 . Energy Cannon 6 | . . . 15 22 20 17 . . 1 . Ballistic Cannon 5 | . 19 27 5 . . . . . 7 14 Naked Turns . | . . . . . . . . . . . Heaviest Build 90 | 12 32 32 47 50 51 51 71 78 90 90 Greatest Support 41 | 20 32 32 41 32 28 28 40 28 28 28 Greatest Overweight (x) 22 | 2 1 . 1 1 1 1 22 2 3 3 Average Overweight (x) 1 | . . . . 1 1 1 2 2 2 2 Largest Inventory Capacity 20 | 8 15 15 15 15 15 15 20 20 20 20 Average Capacity 17 | 7 12 15 15 15 15 15 19 20 20 20 Most Carried 20 | 8 15 15 15 15 15 15 20 20 20 20 Average Carried 16 | 5 11 14 14 14 14 14 18 19 19 19 Final Capacity 20 | 8 15 15 15 15 15 15 20 20 20 20 Final Carried 20 | 8 15 15 15 15 15 15 20 16 20 20 Class Distribution -------------------- 78% | Mutant 8% | Scavenger-Mutant 6% | Trapper-Mutant 5% | Skirmisher Dominant Class ---------------- Mutant | -10/Materials Mutant | -10/Mines Mutant | -9/Materials Trapper-Mutant | -9/Mines Mutant | -9/Exiles Mutant | -8/Mines Mutant | -8/Materials Scavenger-Mutant | -7/Factory Mutant | -7/Waste Mutant | -7/Factory Resources | -11 -10 -10 -9 -9 -9 -8 -8 -7 -7 -7 ----------- Run | Jun Mat Min Mat Min Exi Min Mat Fac Was Fac Matter Collected 3467 | 257 257 320 651 37 33 89 569 533 258 463 Remotely . | . . . . . . . . . . . Salvage Created 6024 | 46 372 80 698 135 162 250 1695 1853 334 399 Parts 298 | 7 22 5 46 5 4 8 89 82 4 26 Haulers Intercepted 6 | . . . 2 . . . 3 1 . . Recyclers Shooed 2 | . 1 . . . . . . 1 . . Parts Field Recycled . | . . . . . . . . . . . Retrieved Matter . | . . . . . . . . . . . Parts Self-Destructed . | . . . . . . . . . . . Prevented . | . . . . . . . . . . . Kills | -11 -10 -10 -9 -9 -9 -8 -8 -7 -7 -7 ------- Run | Jun Mat Min Mat Min Exi Min Mat Fac Was Fac Combat Hostiles Destroyed 116 | . 11 5 17 6 . 6 30 27 1 13 Guns 48 | . 5 . . . . . 25 18 . . Cannons 40 | . 6 3 11 2 . 6 1 . . 11 AOE 21 | . . 2 6 3 . . 3 5 . 2 Classes Destroyed 16 | 1 4 . 5 1 . 1 1 2 1 . Worker 5 | . . . . . . . 2 1 . 2 Builder 5 | . 1 . . . . . 1 2 . 1 Tunneler 2 | 2 . . . . . . . . . . Hauler 6 | . . . 2 . . . 3 1 . . Recycler 5 | . . . . . . . . 5 . . Operator 1 | . . . 1 . . . . . . . Watcher 14 | . 3 . 2 . . . 5 3 . 1 Swarmer 32 | . 3 2 5 4 . 2 7 5 . 4 Grunt 45 | . 8 3 5 1 . 3 12 11 . 2 Brawler 5 | . . . . 1 . . 1 2 . 1 Duelist 1 | . . . 1 . . . . . . . Sentry 22 | . . . 6 . . . 8 4 . 4 Hunter 5 | . . . . . . 1 2 2 . . Programmer 5 | . . . . . . . . 3 . 2 Compactor 1 | . . . . . . . . . 1 . Zionite 1 | . . . 1 . . . . . . . Thug 1 | . . . . . . . . . . 1 Best Kill Streak 9 | 1 3 2 4 4 . 2 4 7 1 9 Combat Bots Only 8 | . 3 2 4 4 . 2 4 7 1 8 Max Kills in Single Turn 4 | 1 1 1 3 3 . 1 3 4 1 4 Gunslinging . | . . . . . . . . . . . Exploded 3 | . . 1 2 3 . . 1 3 . 2 Melee . | . . . . . . . . . . . Uniques/NPCs Destroyed . | . . . . . . . . . . . Combat | -11 -10 -10 -9 -9 -9 -8 -8 -7 -7 -7 -------- Run | Jun Mat Min Mat Min Exi Min Mat Fac Was Fac Damage Taken 7399 | . 396 187 520 18 . 429 1496 2552 23 1778 Core 1175 | . 58 85 113 . . 34 243 411 . 231 Absorbed by Shields 231 | . . . 4 7 . . 119 101 . . Redirected to Shielding 14 | . . . . . . . . 14 . . Regen/Repaired (Parts) 588 | . 101 . 36 . . . 223 117 111 . Core Remaining (%) 65 | 100 . 42 . . . 63 55 . . . Volleys Fired 391 | 3 35 10 48 5 24 17 107 89 9 44 Largest 2 | 2 2 2 2 2 2 2 2 2 2 2 Hottest 150 | 90 100 78 126 126 126 126 122 150 125 96 Shots Fired 751 | 6 70 21 94 10 26 31 212 176 17 88 Gun 418 | 6 30 . . . . . 198 172 12 . Cannon 288 | . 40 19 91 10 4 31 5 . 1 87 Launcher 23 | . . 2 3 . . . 9 4 4 1 Special 22 | . . . . . 22 . . . . . Kinetic 203 | . 40 19 57 . . . . . . 87 Thermal 386 | 6 30 . 8 . 22 . 193 114 13 . Explosive 10 | . . 2 3 . . . . . 4 1 Electromagnetic 152 | . . . 26 10 4 31 19 62 . . Robot Hit Streak 17 | 1 4 4 16 10 10 10 12 15 16 17 Robot Miss Streak 8 | 2 8 2 3 1 3 3 4 4 1 5 Penetration Max . | . . . . . . . . . . . Secondary Targets 8 | . . . . . . . 6 2 . . Max Gunslinging Chain 1 | . . . . . . . 1 1 . . Shots Hit Robots 466 | 2 31 10 53 8 19 17 130 124 16 56 Core Hits 235 | 2 19 8 28 5 9 10 63 62 8 21 Critical Kills . | . . . . . . . . . . . Critical Parts Destroyed . | . . . . . . . . . . . Critical Strikes 36 | . 2 1 2 . . . 11 13 . 7 Burn 24 | . 2 . . . . . 11 11 . . Blast 10 | . . 1 2 . . . . . . 7 Corrupt 2 | . . . . . . . . 2 . . Melee Attacks 34 | . . . . . . . 3 23 . 8 Impact 8 | . . . . . . . . . . 8 Slashing 26 | . . . . . . . 3 23 . . Piercing . | . . . . . . . . . . . Sneak Attacks . | . . . . . . . . . . . Combat Hostiles . | . . . . . . . . . . . Follow-up Attacks . | . . . . . . . . . . . Damage Inflicted 15104 | 33 684 370 1817 343 300 718 3284 4096 988 2471 Guns 5877 | 33 164 . . . . . 2658 2770 252 . Cannons 4905 | . 520 276 1285 172 89 432 120 . 35 1976 Explosions 4123 | . . 94 532 171 43 286 490 1326 701 480 Melee . | . . . . . . . . . . . Ramming 31 | . . . . . . . 16 . . 15 Kinetic 3504 | . 520 276 732 . . . . . . 1976 Thermal 6488 | 33 164 . 140 171 211 286 2730 2466 287 . Explosive 2304 | . . 94 506 . . . . 523 701 480 Electromagnetic 2777 | . . . 439 172 89 432 538 1107 . . Impact . | . . . . . . . . . . . Slashing . | . . . . . . . . . . . Piercing . | . . . . . . . . . . . Highest Corruption 5 | . 1 1 . . . . 5 3 2 1 Average Corruption 3 | . 1 1 . . . . 5 2 1 1 Corruption Purged 6 | . . . . . . . . 3 2 1 Corruption Blocked . | . . . . . . . . . . . Effects 102 | . 2 4 . . . . 80 9 3 4 Message Errors 34 | . 1 . . . . . 28 3 1 1 Matter Fused 21 | . . 1 . . . . 17 3 . . Heat Flow Errors 12 | . . 1 . . . . 8 1 1 1 Energy Discharges 9 | . 1 . . . . . 7 . . 1 Parts Rejected 1 | . . . . . . . 1 . . . Parts Fused 1 | . . . . . . . 1 . . . Data Loss (minor) 8 | . . . . . . . 7 . . 1 Data Loss (major) 6 | . . 1 . . . . 3 1 1 . Misfires 3 | . . 1 . . . . 2 . . . Alerts 2 | . . . . . . . 2 . . . Weapon Failures 5 | . . . . . . . 4 1 . . Overload Shots 8 | . . . . . . . . 6 2 . Overflow Damage 245 | . . . 41 . 9 . 16 90 . 89 Projectiles 54 | . . . 8 . 9 . . . . 37 Explosions 191 | . . . 33 . . . 16 90 . 52 Melee . | . . . . . . . . . . . Knockbacks 20 | . 4 3 1 . . . . . . 12 Impact . | . . . . . . . . . . . Kinetic 19 | . 3 3 1 . . . . . . 12 Secondary 1 | . 1 . . . . . . . . . Self-Inflicted Damage 675 | . . . 49 . . 43 8 359 23 193 Shots 13 | . . . 2 . . 1 . 6 1 3 Rammed 2 | . . . . . . . 1 . . 1 Targets Rammed 2 | . . . . . . . 1 . . 1 Kicked . | . . . . . . . . . . . Crushed . | . . . . . . . . . . . Highest Temperature 370 | 60 198 176 234 168 168 370 352 246 127 278 Average Temperature 82 | 27 57 62 56 75 88 164 84 72 89 86 Received Heat Transfer 2171 | . 192 117 132 4 . 108 657 574 . 387 Effects 5 | . . . . . . 3 2 . . . Shutdowns 2 | . . . . . . 1 1 . . . Energy Bleed 1 | . . . . . . 1 . . . . Matter Decay 1 | . . . . . . 1 . . . . Damage (minor) 1 | . . . . . . . 1 . . . Siege Activations . | . . . . . . . . . . . Robots Corrupted 3 | . . . . 1 . . . 2 . . Combat Hostiles 3 | . . . . 1 . . . 2 . . Parts Fried 15 | . . . 4 2 1 1 1 6 . . Impact Corruptions . | . . . . . . . . . . . Robots Melted 4 | . . . . . . . 1 3 . . Combat Hostiles 3 | . . . . . . . 1 2 . . Parts Melted 38 | 1 2 . . . 1 . 11 20 2 1 Heat Transferred 12432 | 87 594 . 235 250 605 350 5478 4363 470 . Parts Sabotaged . | . . . . . . . . . . . Parts Stolen . | . . . . . . . . . . . Parts Stripped . | . . . . . . . . . . . Power Chain Reactions 12 | . . . 1 2 1 3 1 4 . . Missiles Intercepted . | . . . . . . . . . . . Alert | -11 -10 -10 -9 -9 -9 -8 -8 -7 -7 -7 ------- Run | Jun Mat Min Mat Min Exi Min Mat Fac Was Fac Peak Influence 811 | 10 190 127 410 150 . 251 459 811 307 329 Initial 283 | . 6 . 11 . . . . 189 283 . Average 202 | 4 75 47 114 47 . 99 293 410 70 173 Maximum Alert Level 3 | . . . 2 . . 1 2 3 1 1 Low Security (%) 61 | 100 100 100 83 100 . 94 23 23 89 67 Level 1 19 | . . . 16 . . 5 45 12 10 32 Level 2 18 | . . . . . . . 30 58 . . Level 3 . | . . . . . . . . 4 . . Level 4 . | . . . . . . . . . . . Level 5 . | . . . . . . . . . . . High Security . | . . . . . . . . . . . Max Security . | . . . . . . . . . . . Squads Dispatched 20 | . 2 1 1 . . . 6 7 . 3 Investigation 7 | . 2 1 1 . . . 2 . . 1 Extermination 4 | . . . . . . . . 3 . 1 Reinforcement 7 | . . . . . . . 4 2 . 1 Assault 1 | . . . . . . . . 1 . . Garrison 1 | . . . . . . . . 1 . . Intercept . | . . . . . . . . . . . Searches Triggered . | . . . . . . . . . . . Construction Impeded . | . . . . . . . . . . . Haulers Reinforced . | . . . . . . . . . . . Active Scanning Responses . | . . . . . . . . . . . Cargo Convoy Interrupts . | . . . . . . . . . . . Stealth | -11 -10 -10 -9 -9 -9 -8 -8 -7 -7 -7 --------- Run | Jun Mat Min Mat Min Exi Min Mat Fac Was Fac Distress Signals 8 | . 1 . 1 . . . 5 . . 1 Communications Jammed . | . . . . . . . . . . . Distress Signals . | . . . . . . . . . . . Times Spotted 207 | . 20 7 37 4 . 11 62 39 6 21 Peak Tracking Total 6 | . 6 3 5 4 . 3 5 5 5 5 Tactical Retreats 11 | . 3 . . . . 1 6 1 . . Traps | -11 -10 -10 -9 -9 -9 -8 -8 -7 -7 -7 ------- Run | Jun Mat Min Mat Min Exi Min Mat Fac Was Fac Traps Triggered 11 | . 1 . . . . . 2 6 . 2 Indirectly . | . . . . . . . . . . . Trap Hack Attempts 65 | . . . 53 . . . 12 . . . Triggered . | . . . . . . . . . . . Disarmed 2 | . . . . . . . 2 . . . Reprogrammed 12 | . . . 12 . . . . . . . Reused 3 | . . . . . . 1 2 . . . Traps Extracted 11 | . . . 8 2 . 1 . . . . Installed 4 | . . . . . . 2 2 . . . Triggered 3 | . . . . . . 1 2 . . . Most Traps Carried 7 | . . . 7 7 7 5 2 . . . Machines | -11 -10 -10 -9 -9 -9 -8 -8 -7 -7 -7 ---------- Run | Jun Mat Min Mat Min Exi Min Mat Fac Was Fac Machines Disabled 26 | . . 1 2 . . 1 2 14 . 6 Max in Single Turn 7 | . . 1 1 . . 1 1 7 . 2 Garrison Access 2 | . . . . . . . . 2 . . Machines Repaired . | . . . . . . . . . . . Machines Sabotaged . | . . . . . . . . . . . Overloaded Fab Kills . | . . . . . . . . . . . Hacking | -11 -10 -10 -9 -9 -9 -8 -8 -7 -7 -7 --------- Run | Jun Mat Min Mat Min Exi Min Mat Fac Was Fac Machines Accessed 68 | . 11 1 17 . . 1 12 18 . 8 Terminals 38 | . 8 . 11 . . 1 8 6 . 4 Fabricators 5 | . . . . . . . . 4 . 1 Repair Stations 7 | . 1 . 2 . . . 1 3 . . Recycling Units 10 | . 2 . 2 . . . 2 2 . 2 Scanalyzers 5 | . . . 2 . . . 1 1 . 1 Garrison Access 2 | . . . . . . . . 2 . . Total Hacks 204 | . 33 1 60 . . 2 45 41 . 22 Successful 137 | . 20 1 49 . . . 31 24 . 12 Failed 66 | . 13 . 10 . . 2 14 17 . 10 Catastrophic 11 | . 1 . 3 . . 1 . 4 . 2 Database Lockouts 1 | . . . 1 . . . . . . . Manual 101 | . 19 . 24 . 3 2 28 15 . 10 Terminals 104 | . 22 . 30 . . 2 24 13 . 13 Fabricators 13 | . . . . . . . . 10 . 3 Repair Stations 26 | . 6 . 4 . . . 9 7 . . Recycling Units 25 | . 5 . 6 . . . 9 2 . 3 Scanalyzers 32 | . . . 20 . . . 3 6 . 3 Garrison Access 3 | . . . . . . . . 3 . . Terminal Hacks 28 | . 3 1 8 . . . 6 5 . 5 Part Schematic 1 | . . . . . . . . 1 . . Robot Analysis 10 | . 2 . 2 . . . 3 2 . 1 Prototype ID Bank 1 | . . . 1 . . . . . . . Open Door 1 | . . 1 . . . . . . . . Level Access Points 1 | . . . 1 . . . . . . . Branch Access Points 2 | . . . 1 . . . . . . 1 Terminal Index 2 | . . . . . . . 1 . . 1 Alert Level 1 | . . . . . . . 1 . . . Unreport Threat 1 | . . . 1 . . . . . . . Locate Traps 4 | . 1 . . . . . . 1 . 2 Reprogram Traps 1 | . . . 1 . . . . . . . Hauler Manifests 2 | . . . . . . . 1 1 . . Registered Prototypes 1 | . . . 1 . . . . . . . Fabricator Hacks 1 | . . . . . . . . 1 . . Network Status 1 | . . . . . . . . 1 . . Repair Station Hacks 21 | . 6 . 4 . . . 8 3 . . Scan Component 11 | . 3 . 2 . . . 4 2 . . Repair 10 | . 3 . 2 . . . 4 1 . . Recycling Unit Hacks 7 | . 2 . 2 . . . 2 . . 1 Report Inventory 2 | . 2 . . . . . . . . . Retrieve Components 5 | . . . 2 . . . 2 . . 1 Scanalyzer 28 | . . . 20 . . . 3 3 . 2 Insert Component 14 | . . . 9 . . . 2 2 . 1 Analyze 14 | . . . 11 . . . 1 1 . 1 Garrison Access Hacks 2 | . . . . . . . . 2 . . Seal Access 2 | . . . . . . . . 2 . . Unauthorized Hacks 50 | . 9 . 15 . . . 12 10 . 4 Terminals 33 | . 6 . 12 . . . 8 4 . 3 Track 8 | . 1 . 4 . . . 3 . . . Assimilate 4 | . 2 . 1 . . . . . . 1 Botnet 16 | . 2 . 6 . . . 4 3 . 1 Detonate 1 | . . . . . . . . 1 . . Operators 4 | . 1 . 1 . . . 1 . . 1 Fabricators 7 | . . . . . . . . 6 . 1 Report 1 | . . . . . . . . 1 . . Prioritize 1 | . . . . . . . . 1 . . Liberate 3 | . . . . . . . . 3 . . Haulers 2 | . . . . . . . . 1 . 1 Repair Stations . | . . . . . . . . . . . Recycling Units 10 | . 3 . 3 . . . 4 . . . Reject 5 | . 2 . 1 . . . 2 . . . Recyclers 1 | . . . 1 . . . . . . . Mask 4 | . 1 . 1 . . . 2 . . . Scanalyzers . | . . . . . . . . . . . Garrison Access . | . . . . . . . . . . . Data Cores Recovered 2 | . . . 2 . . . . . . . Used 1 | . . . 1 . . . . . . . Hacking Detections 60 | . 10 . 14 . . 1 12 15 . 8 Full Trace Events 2 | . 1 . . . . . . . . 1 Feedback Events 1 | . 1 . . . . . . . . . Corruption 1 | . 1 . . . . . . . . . Feedback Blocked . | . . . . . . . . . . . Robot Schematics Acquired . | . . . . . . . . . . . Robots Built . | . . . . . . . . . . . Authchips . | . . . . . . . . . . . Time . | . . . . . . . . . . . Total Robot Build Rating . | . . . . . . . . . . . Part Schematics Acquired 13 | . . . 9 . . . 1 2 . 1 Parts Built . | . . . . . . . . . . . Authchips . | . . . . . . . . . . . Time . | . . . . . . . . . . . Total Part Build Rating . | . . . . . . . . . . . Parts Repaired 10 | . 3 . 2 . . . 4 1 . . Time 400 | . 102 . 64 . . . 190 44 . . Parts Recycled . | . . . . . . . . . . . Recycled Matter . | . . . . . . . . . . . Retrieved Matter . | . . . . . . . . . . . Retrieved Components 39 | . . . 12 . . . 17 . . 10 Parts Scanalyzed 13 | . . . 9 . . . 1 2 . 1 Part Schematics Acquired 12 | . . . 9 . . . 1 1 . 1 Parts Damaged 2 | . . . 1 . . . 1 . . . Bothacking | -11 -10 -10 -9 -9 -9 -8 -8 -7 -7 -7 ------------ Run | Jun Mat Min Mat Min Exi Min Mat Fac Was Fac Used RIF Installer . | . . . . . . . . . . . Robots Hacked . | . . . . . . . . . . . Non-combat . | . . . . . . . . . . . Combat . | . . . . . . . . . . . Robot Hacks Applied . | . . . . . . . . . . . Relay Couplers Released . | . . . . . . . . . . . Fabnet Peak Effective % . | . . . . . . . . . . . Robots Rewired 2 | . . . . . 2 . . . . . Allies Hacked . | . . . . . . . . . . . Hacks Repelled . | . . . . . . . . . . . Allies | -11 -10 -10 -9 -9 -9 -8 -8 -7 -7 -7 -------- Run | Jun Mat Min Mat Min Exi Min Mat Fac Was Fac Total Allies 30 | . 1 2 . . 2 . . 6 19 . Largest Group 23 | . 1 3 3 1 3 3 2 6 23 8 Highest-Rated Group 537 | . 10 52 51 9 38 38 30 108 537 222 Highest-Rated Ally 35 | . 10 31 31 9 21 21 21 20 35 31 Total Orders 18 | . . 2 . 2 3 9 2 . . . STAY 8 | . . 1 . 1 1 4 1 . . . FOLLOW 10 | . . 1 . 1 2 5 1 . . . Ally Attacks 285 | . . . 18 . . 35 13 43 148 28 Total Damage 6324 | . . . 271 . . 448 253 478 4319 555 Kills 34 | . . . 6 . . 5 3 6 10 4 Allies Corrupted . | . . . . . . . . . . . Allies Melted 2 | . . . . . . . . 1 . 1 Intel | -11 -10 -10 -9 -9 -9 -8 -8 -7 -7 -7 ------- Run | Jun Mat Min Mat Min Exi Min Mat Fac Was Fac Robot Analysis Total 10 | . 2 . 2 . . . 3 2 . 1 Derelict Logs Recovered 4 | . . 2 . 2 . . . . . . Drone Launches . | . . . . . . . . . . . Drone Recoveries . | . . . . . . . . . . . Exploration | -11 -10 -10 -9 -9 -9 -8 -8 -7 -7 -7 ------------- Run | Jun Mat Min Mat Min Exi Min Mat Fac Was Fac Turns Passed 16769 | 116 1325 795 3099 827 931 923 3602 3055 959 1137 Spaces Moved 10989 | 67 996 678 2319 668 742 678 1834 1745 585 677 Core 9 | 8 . . . . . . 1 . . . Treads 136 | . . . . . . . 136 . . . Legs 307 | 59 248 . . . . . . . . . Wheels 10537 | . 748 678 2319 668 742 678 1697 1745 585 677 Hover . | . . . . . . . . . . . Flight . | . . . . . . . . . . . Fastest Speed 50 | 50 80 100 100 110 110 110 110 130 130 130 Average Speed 121 | 116 99 100 114 113 110 110 144 130 137 131 Slowest Speed 1150 | 150 120 100 115 115 110 110 1150 130 145 145 Overloaded Moves . | . . . . . . . . . . . Propulsion Burnouts . | . . . . . . . . . . . Robots Hopped . | . . . . . . . . . . . Cave-ins Triggered . | . . . . . . . . . . . Exploration Rate (%) 74 | 4 97 97 98 97 91 98 93 39 88 18 Regions Visited 10 Branch Regions 4 Pre-discovered Areas 2 | . . 1 . 1 . . . . . . Known Exits Taken 3 | . . . 1 . . 1 1 . . . Unknown Exits Taken 5 | 1 1 1 . 1 1 . . . . . Scrap Searched 3 | . . 1 . 1 . 1 . . . . Spaces Dug 5 | . . . 1 . . . 3 . . 1 Terrain Destroyed 264 | . 3 17 36 13 4 29 10 74 19 59 Melee 3 | . . . . . . . 3 . . . Projectile 33 | . 3 . 4 . . . . . . 26 AOE 228 | . . 17 32 13 4 29 7 74 19 33 Terrain Rammed . | . . . . . . . . . . . Walls Destroyed . | . . . . . . . . . . . Machines Disabled . | . . . . . . . . . . . Actions | -11 -10 -10 -9 -9 -9 -8 -8 -7 -7 -7 --------- Run | Jun Mat Min Mat Min Exi Min Mat Fac Was Fac Total 13608 | 95 1259 775 2681 729 810 824 2563 2332 723 817 Wait 1588 | 11 185 71 165 49 14 118 499 355 92 29 Move 10980 | 66 995 677 2318 667 741 677 1833 1745 584 677 Hop . | . . . . . . . . . . . Pick Up 133 | 8 15 5 27 1 2 3 29 26 10 7 Fast Attach 83 | 7 7 . 12 . 2 1 23 18 3 10 Attach 46 | . 3 . 10 . . . 8 14 5 6 Detach 12 | . 2 . 2 . . . . 4 1 3 Swap 79 | . 3 6 11 3 1 2 16 24 9 4 Drop 155 | . 14 6 35 4 6 4 30 34 10 12 Fire 391 | 3 35 10 48 5 24 17 107 89 9 44 Melee 34 | . . . . . . . 3 23 . 8 Ram 2 | . . . . . . . 1 . . 1 Kick . | . . . . . . . . . . . Crush . | . . . . . . . . . . . Escape Stasis 16 | . . . . . . . . . . 16 Rewire 20 | . . . . . 20 . . . . . Trap 69 | . . . 53 . . 2 14 . . . Miscellaneous . | . . . . . . . . . . . Route ------- -11/Junkyard -10/Materials (discovered 4 exits: *Mat x2 / *Min x2) -10/Mines (discovered 2 exits: *Mat x2) -9/Materials (discovered 5 exits: *Mat x3 / *Min x2) -9/Mines (discovered 3 exits: *Mat x2 / *Exi) -9/Exiles (discovered 2 exits: *Min x2) -8/Mines (discovered 2 exits: *Mat x2) -8/Materials (discovered 3 exits: *Fac x3) -7/Factory (discovered 2 exits: [*Fac] / *Low) -7/Waste -7/Factory (discovered 4 exits: Sto x2 / Low x2) History --------- Turn | Location | Event 9 | -11/Junkyard | Discovered new exit (range 16) 117 | -11/Junkyard | Entered Materials 308 | -10/Materials | Build established: Mutant 401 | -10/Materials | Discovered new exit (range 12) 838 | -10/Materials | Discovered new exit (range 6) 941 | -10/Materials | Discovered new exit (range 4) 1092 | -10/Materials | Discovered new exit (range 9) 1346 | -10/Materials | Repaired Imp. Light Cannon 1378 | -10/Materials | Repaired Imp. Light Cannon 1416 | -10/Materials | Repaired Imp. Terrain Scanner 1442 | -10/Materials | Entered Mines 1442 | -10/Mines | Accompanied by 1 ally 1453 | -10/Mines | Met a Derelict bent on vengeance 1605 | -10/Mines | Discovered new exit (range 7) 1618 | -10/Mines | Met a Derelict shopkeep closing up shop 1626 | -10/Mines | Core integrity fell below 50% 1671 | -10/Mines | Learned Materials terminal intel 1899 | -10/Mines | Discovered new exit (range 10) 2237 | -10/Mines | Entered Materials 2237 | -9/Materials | Accompanied by 3 allies 2237 | -9/Materials | Evolved 2 slots: Utility x2 2238 | -9/Materials | Loaded intel: 12 terminal locations 2242 | -9/Materials | Led the pair of lost Derelicts to an unsafe place 2557 | -9/Materials | Discovered new exit (range 4) 2627 | -9/Materials | Discovered new exit (range 16) 2759 | -9/Materials | Discovered new exit (range 16) 2883 | -9/Materials | Discovered new exit (range 11) 3031 | -9/Materials | Identified exit to Materials 3049 | -9/Materials | Identified exit to Mines 3180 | -9/Materials | Central database locked down 4215 | -9/Materials | Repaired Imp. Ion Engine 4523 | -9/Materials | Repaired Hrd. Light Armor Plating 5336 | -9/Materials | Entered Mines 5336 | -9/Mines | Accompanied by 1 ally 5415 | -9/Mines | Build established: Trapper-Mutant 5478 | -9/Mines | Deemed a non-threat by the Exiles lab entrance 5479 | -9/Mines | Discovered new exit (range 5) 5709 | -9/Mines | Learned location of Storage (-7) 5810 | -9/Mines | Discovered exit to Materials (range 6) 5811 | -9/Mines | Discovered exit to Materials (range 16) 5825 | -9/Mines | Learned 4 Materials zone layouts 5903 | -9/Mines | A weapon hastily lodged in a ceiling crevice suddenly fell to the ground 6033 | -9/Mines | YI-UF0 nonchalantly dropped a Grenade Launcher on the ground 6163 | -9/Mines | Entered Exiles 6163 | -9/Exiles | Found Exiles lab destroyed 6163 | -9/Exiles | Accompanied by 1 ally 6377 | -9/Exiles | Opened EX-Vault 6383 | -9/Exiles | Found Prototype Ballistic Cannon 6591 | -9/Exiles | Build established: Mutant 6843 | -9/Exiles | Discovered new exit (range 14) 7073 | -9/Exiles | Discovered new exit (range 14) 7094 | -9/Exiles | Entered Mines 7094 | -8/Mines | Accompanied by 3 allies 7354 | -8/Mines | Discovered exit to Materials (range 6) 7380 | -8/Mines | Discovered exit to Materials (range 5) 8017 | -8/Mines | Entered Materials 8017 | -8/Materials | Accompanied by 2 allies 8017 | -8/Materials | Evolved 2 slots: Utility x2 8018 | -8/Materials | Identified exit to Factory 9595 | -8/Materials | Repaired Imp. Heat Sink 9631 | -8/Materials | Repaired Rnf. Ion Engine 9881 | -8/Materials | Discovered exit to Factory (range 15) 9903 | -8/Materials | Lost 3 parts (1n2u) 10794 | -8/Materials | Identified AWS/Autocannon 11334 | -8/Materials | Repaired Adv. Beam Rifle? 11401 | -8/Materials | Repaired Adv. Beam Rifle? 11619 | -8/Materials | Entered Factory 11619 | -7/Factory | Evolved 2 slots: Utility x2 12128 | -7/Factory | Build established: Skirmisher 12561 | -7/Factory | Discovered new exit (range 12) 12578 | -7/Factory | Identified exit to Lower Caves 12844 | -7/Factory | Lost 3 parts (1p1n1u) 12903 | -7/Factory | Destroyed 7 combat bots 12977 | -7/Factory | Build established: Mutant 13506 | -7/Factory | Garrison activated, responded to threat 13607 | -7/Factory | Build established: Scavenger-Mutant 13675 | -7/Factory | Discovered new exit (range 15) 14256 | -7/Factory | Repaired Arm. Huge Wheel 14466 | -7/Factory | First assault squad dispatched 14636 | -7/Factory | Core integrity fell below 50% 14666 | -7/Factory | Lost 3 parts (1p1u1w) 14674 | -7/Factory | Sucked down chute 14674 | -7/Factory | Entered Waste 14713 | -7/Waste | Build established: Mutant 14727 | -7/Waste | Warlord forces began an assault 14735 | -7/Waste | 4 allies followed down the chute 14746 | -7/Waste | Spotted C-40 Crusher 14748 | -7/Waste | Spotted C-40 Crusher 14751 | -7/Waste | Spotted C-40 Crusher 14751 | -7/Waste | Allies destroyed C-40 Crusher 14752 | -7/Waste | Spotted C-40 Crusher 14760 | -7/Waste | Allies destroyed C-40 Crusher 14760 | -7/Waste | Spotted C-40 Crusher 14764 | -7/Waste | Spotted C-40 Crusher 14765 | -7/Waste | Allies destroyed C-40 Crusher 14779 | -7/Waste | Allies destroyed C-40 Crusher 14785 | -7/Waste | Allies destroyed C-40 Crusher 14789 | -7/Waste | Destroyed C-40 Crusher 14965 | -7/Waste | Discovered new exit (range 16) 14983 | -7/Waste | Identified exit to Factory 15633 | -7/Waste | Entered Factory 15633 | -7/Factory | Accompanied by 8 allies 16162 | -7/Factory | Identified exit to Storage 16264 | -7/Factory | Core integrity fell below 20% 16301 | -7/Factory | Destroyed 8 combat bots 16770 | -7/Factory | Self-destructed Last Messages --------------- 16615_ Autogun tumbles out of recycling unit. 16620_ Lgt. Treads tumbles out of recycling unit. 16623_ Autogun tumbles out of recycling unit. 16627_ Wheel tumbles out of recycling unit. 16691_ Y-54 Guardian Lgt. Treads blasted off. 16694_ Y-54 Guardian destroyed. 16697_ K-01 Serf collects debris. 16707_ U-05 Engineer builds a Wall. 16744_ Slammed into Y-54 Guardian. 16757_ U-05 Engineer destroyed. 16758_ M-13 Machinist repairs Lgt. Treads. 16758_ K-01 Serf collects debris. 16760_ R-06 Scavenger collects Terrain Scan Processor. 16761_ Acquired 55 matter. 16762_ K-01 Serf collects debris. 16762_ M-13 Machinist repairs G-47 Trooper. 16763_ K-01 Serf destroyed. 16764_ R-06 Scavenger destroyed. 16767_ Kinecellerator destroyed. 16770_ Arm. Huge Wheel destroyed. Map ----- +----------------------------------------------------+ | #??# """ #### #???????????? | | #??# """ + + [#???????????? | | #??# ! # # """ """ #???????????? | | ############# # """ """ ??????????????? | | # """ """ ??????????????? | | + #???????????? | | # # """ ! #???????????? | | ##+###+############## # """ !!???????????????? | | # == #???#### # """ !]???????????????? | | # #??? # # ??????????????????????? | | # *[ #???" # # ??????????????????????? | | # = #??"" # ################?????????? | | # """ [* #"""" # # ?????????? | | # """ #"""" # # ????????? | | # """ #"""" ]# + ????????? | | #* #"""" # # ????????? | | # """ """ # # # ????????? | | # """ """ # # # ????????? | | # """ """ # #m # ????????? | | # #! /Yg ################?????????? | | ############## # g#? ?????????????????? | | ?????????######## =##! """ #??????????????? | | #??????????????# %|# """ #??????????????? | | #??????######### % % # """ #??????????????? | | #???# ! / #??????????????? | | #????????####### % = @ "F^"" ????????????????? | | #??????????????# %%=# """"" ????????????????? | | #??????????????###%### """""?????????????????? | | ####?????????????????#%#??? ?????????????????? | | ?????????????????????#%#???######????????????????? | | ?????????????????????#%#?????????????????????????? | | ?????????????????????# #?????????????????????????? | | ?????????????????????+ ????>????????????????????? | | ?????????????????????# ?????????????????????????? | | ?????????????????????? ?????????????????????????? | | ?????????????????????? ?????????????????????????? | | ?????????????????????? w????????????????????????? | | ?????????????????????? ????????????????????????? | | ?????????????????????? ????????????????????????? | | ?????????????????????? ?????????????????????????? | | ?????????????????????? ?????????????????????????? | | ?????????????????????????????????????????????????? | | ?????????????????????????????????????????????????? | | ?????????????????????????????????????????????????? | | ?????????????????????????????????????????????????? | | ?????????????????????????????????????????????????? | | ?????????????????????????????????????????????????? | | ?????????????????????????????????????????????????? | | ?????????????????????????????????????????????????? | | ?????????????????????????????????????????????????? | +----------------------------------------------------+ Best States ------------- Heat Dissipation 89 Energy Generation 17 Energy Capacity 490 Matter Stores 300 Matter Capacity 300 Sight Range 16 Robot Scan Range 15 Terrain Scan Range 16 Terrain Scan Density 110 Additional Mass Support 9 Armor Coverage 600 Resistance: TH 10 Utility Shielding 66 Evasion (%) 55 Targeting Accuracy 6 Melee Accuracy 5 Recoil Reduction 4 Particle Charging 15 Kinecelleration 30 Offensive Hacking 11 Trap Extractor Capacity 4 Item Schematics ----------------- Hvy. Armor Plating | -9/Materials | Scanalyzed Hvy. Particle Cannon | -9/Materials | Scanalyzed Com. Matter Pod | -9/Materials | Scanalyzed Mni. Grenade Launcher | -9/Materials | Scanalyzed Com. Wheel | -9/Materials | Scanalyzed ECM Suite | -9/Materials | Scanalyzed Hvy. Flail | -9/Materials | Scanalyzed Com. Battery | -9/Materials | Scanalyzed Imp. Ion Engine | -9/Materials | Scanalyzed Arm. Huge Wheel | -8/Materials | Scanalyzed Hcp. Storage Unit | -7/Factory | Scanalyzed Energy Well | -7/Factory | Hacked Adv. System Restoration Module | -7/Factory | Scanalyzed Robot Schematics ------------------ None Fabricated ------------ Nothing Alien Tech Used ----------------- None Achievements -------------- None Challenges ------------ None Game ------ Seed RelayBiomechanicalGravjet Manual? 0 Play Time 02:12:22 Cumulative 546.5 hours Start 2023.03.08 @ 13:19:42 End 2023.03.08 @ 15:38:22 Sessions 1 Manual Loads 0 Difficulty Rogue Special Mode None Game No. 388 Rogue 388 Adventurer 0 Explorer 0 Win Type - Total 1 Types 1/0/0/0/0/0/0/0/0 Lore% 69 Gallery% 78 Achievement% 58 Wizard Run 0 Options --------- ASCII 0 Keyboard 0 Movement Mouse Keybinds 0 Fullscreen 1 Font 16/SmallcapsGlow Map View 75x55 Tactical HUD 1 Map Filters NONE Filters NONE Steam 1 RUN: 82c47715-f857-4888-b166-f721c58b2c37